bitfinex/quotes_ETHUSD_20240614
["timestamp","ask_amount","ask_price","bid_price","bid_amount"]
[1718357919655,0.698,3518.8,3518.2,3.76304514]
[1718357921362,0.698,3519.0,3518.2,3.76304514]
[1718357926764,0.698,3519.0,3518.3,0.05683876]
[1718357927147,0.698,3519.0,3518.2,3.76304514]
[1718357927830,0.698,3518.8,3518.2,3.76304514]
[1718357932533,0.698,3518.9,3518.2,3.76304514]
[1718357940391,2.3008,3519.8,3518.4,2.4891]
[1718357940694,0.698,3519.0,3518.5,3.97937913]
[1718357941577,0.698,3519.2,3518.5,3.97937913]
[1718357941751,0.698,3519.2,3518.5,3.92254514]
[1718357942083,0.698,3519.2,3518.6,0.05683286]
[1718357942284,2.3215,3519.7,3518.6,1.490278]
[1718357942485,2.3215,3519.7,3518.7,2.3164]
[1718357942804,2.3215,3519.7,3518.8,0.0568322]
[1718357943085,2.85365,3519.7,3518.7,3.74984514]
[1718357943264,0.698,3519.3,3518.7,3.74984514]
[1718357944849,2.3215,3519.7,3518.8,1.49027511]
[1718357945101,2.3925,3520.1,3518.9,2.4723]
[1718357945390,0.698,3519.6,3518.9,2.4723]
[1718357948058,0.698,3519.6,3519.0,0.05682836]
[1718357948257,0.698,3519.6,3518.9,2.4723]
[1718357948515,2.3925,3520.1,3518.9,2.4723]
[1718357948516,0.698,3519.4,3518.9,2.4723]
[1718357948966,0.698,3519.2,3518.9,2.4723]
[1718357949167,0.698,3519.2,3518.6,2.4055]
[1718357952305,0.698,3519.0,3518.6,2.4055]
[1718357955810,0.698,3518.7,3518.2,2.74450193]
[1718357956014,0.698,3518.7,3518.2,3.93224514]
[1718357957727,2.4468,3519.3,3518.2,3.93224514]
[1718357957892,0.698,3518.9,3518.2,3.93224514]
[1718357960441,0.698,3518.9,3518.3,0.05683902]
[1718357962341,0.698,3518.9,3518.2,3.93224514]
[1718357963633,0.698,3518.9,3518.3,0.05683905]
[1718357971237,0.698,3518.9,3518.2,3.93224514]
[1718357972022,2.4468,3519.3,3518.3,0.05683826]
[1718357972225,0.698,3518.9,3518.3,0.05683826]
[1718357972752,0.698,3518.9,3518.2,3.93224514]
[1718357973057,0.698,3518.9,3518.3,0.05683826]
[1718357974209,0.698,3518.9,3518.2,4.5267077]
[1718357974408,0.698,3518.9,3518.2,3.93224514]
[1718357975844,0.698,3518.9,3518.3,0.05683827]
[1718357976229,0.24468,3519.2,3518.3,0.05683827]
[1718357976549,2.5161,3519.6,3518.4,3.84964514]
[1718357976755,0.698,3519.2,3518.5,0.05683337]
[1718357976912,2.2669,3519.6,3518.6,1.43344514]
[1718357977111,0.698,3519.2,3518.6,1.43344514]
[1718357978515,0.698,3519.0,3518.6,1.43344514]
[1718357979037,2.4509,3519.9,3518.6,1.43344514]
[1718357979345,3.0,3519.7,3518.1,2.285]
[1718357979514,0.698,3518.5,3518.2,1.43344514]
[1718357979709,0.698,3518.7,3518.2,1.43344514]
[1718357980152,0.698,3518.9,3518.2,1.43344514]
[1718357981218,2.4827,3519.0,3518.2,1.43344514]
[1718357981423,0.698,3518.9,3518.2,2.02965934]
[1718357984877,0.698,3518.7,3518.2,2.02965934]
[1718357985576,0.698,3518.8,3518.2,2.02965934]
[1718357986281,2.4827,3519.0,3518.2,2.02965934]
[1718357986459,0.698,3518.8,3518.2,1.43344514]
[1718357986659,2.4827,3519.0,3518.2,1.43344514]
[1718357986875,0.698,3518.8,3518.2,1.43344514]
[1718357994284,0.698,3518.8,3518.1,2.8812142]
[1718357994587,0.698,3518.8,3518.2,0.5962142]
[1718357995908,0.698,3518.8,3518.1,4.31465934]
[1718357996299,0.698,3518.8,3518.2,0.5962142]
[1718358000512,0.698,3518.4,3518.1,0.5962142]
[1718358000716,0.698,3518.4,3518.0,0.5962142]
[1718358000926,0.698,3518.4,3517.9,1.04090967]
[1718358004853,3.0683,3518.6,3517.9,1.04090967]
[1718358007662,0.698,3518.4,3517.9,0.44469547]
[1718358010048,0.698,3518.4,3517.5,0.5962142]
[1718358010049,0.698,3518.0,3517.5,0.5962142]
[1718358010248,0.698,3517.8,3517.4,0.5962142]
[1718358010566,0.698,3517.8,3517.3,2.2841]
[1718358010567,0.698,3517.8,3517.3,2.8803142]
[1718358010744,0.698,3517.8,3517.3,4.31375934]
[1718358011118,0.698,3517.8,3517.3,3.71754514]
[1718358011416,2.3855,3517.7,3517.0,0.5962142]
[1718358011732,2.3855,3517.7,3516.9,2.2993]
[1718358011733,0.698,3517.3,3517.1,1.43344514]
[1718358011940,0.698,3517.5,3517.1,1.43344514]
[1718358012253,2.3855,3517.7,3517.1,1.43344514]
[1718358012429,0.698,3517.4,3517.1,1.43344514]
[1718358012951,0.698,3517.4,3516.9,2.2993]
[1718358013153,0.698,3517.4,3517.0,1.43344514]
[1718358013825,0.698,3517.4,3516.9,2.2993]
[1718358014157,2.3855,3517.7,3516.9,2.2993]
[1718358014334,3.0835,3517.7,3516.9,2.2993]
[1718358014724,0.698,3517.6,3516.9,2.2993]
[1718358014925,2.3855,3517.7,3517.0,0.698]
[1718358016047,2.3855,3517.7,3517.1,0.44483833]
[1718358016219,2.2714,3518.4,3517.1,0.5017002]
[1718358016418,2.2714,3518.0,3517.1,0.44483833]
[1718358016855,2.2714,3518.0,3517.1,0.50169773]
[1718358017227,2.2714,3518.0,3517.1,0.44483833]
[1718358018376,0.698,3517.9,3517.1,0.44483833]
[1718358018968,2.2883,3517.8,3517.1,0.44483833]
[1718358019141,0.29863,3517.7,3517.1,0.44483833]
[1718358021040,1.45524864,3517.8,3517.1,0.44483833]
[1718358023271,0.698,3517.7,3517.1,0.44483833]
[1718358023842,1.45524864,3517.8,3517.1,0.44483833]
[1718358024046,2.15324864,3517.8,3517.1,0.44483833]
[1718358024244,0.21532486,3517.7,3517.1,0.44483833]
[1718358026487,2.15324864,3517.8,3517.1,0.44483833]
[1718358033157,1.45524864,3517.8,3517.1,0.44483833]
[1718358035089,1.45524864,3517.8,3517.1,2.71413833]
[1718358041184,2.4958,3518.0,3517.1,2.71413833]
[1718358041509,3.1938,3518.0,3517.1,2.71413833]
[1718358041801,3.865894,3518.0,3517.1,2.71413833]
[1718358043305,1.370094,3518.0,3517.1,2.71413833]
[1718358044398,2.4817,3518.3,3517.1,2.71413833]
[1718358046286,0.698,3518.1,3517.1,2.71413833]
[1718358050675,2.4817,3518.3,3517.1,2.71413833]
[1718358051006,3.0,3518.5,3517.4,0.698]
[1718358051237,3.0,3518.5,3517.5,2.2967]
[1718358051419,1.23522,3518.4,3517.5,2.2967]
[1718358054692,0.53722,3518.4,3517.5,2.2967]
[1718358054886,3.698,3518.5,3517.5,2.2967]
[1718358057096,2.3722,3518.6,3517.5,2.2967]
[1718358057291,0.698,3518.4,3517.5,2.2967]
[1718358061744,0.698,3518.2,3517.5,2.2967]
[1718358065652,5.3722,3518.6,3517.5,2.2967]
[1718358065802,0.698,3518.2,3517.5,2.2967]
[1718358066405,3.1923,3518.2,3517.5,2.2967]
[1718358068014,3.1923,3518.2,3517.1,1.73905253]
[1718358068015,0.698,3517.8,3517.2,2.388]
[1718358068221,2.4943,3518.2,3517.2,2.388]
[1718358068421,0.698,3517.7,3517.2,2.388]
[1718358072708,0.698,3517.7,3517.0,2.63849071]
[1718358074853,2.2866,3517.8,3517.0,2.63849071]
[1718358074854,0.698,3517.3,3517.0,0.29669071]
[1718358075057,0.698,3517.3,3516.6,2.78556804]
[1718358075296,0.698,3517.3,3516.6,2.3407]
[1718358075856,0.24943,3518.1,3517.1,0.698]
[1718358076055,3.94743,3518.1,3517.1,3.0695]
[1718358076251,0.698,3517.9,3517.1,2.3715]
[1718358076905,3.24943,3518.1,3517.1,2.3715]
[1718358076906,0.698,3517.7,3517.1,2.3715]
[1718358077197,0.698,3517.8,3517.1,2.3715]
[1718358077353,1.392743,3517.8,3517.1,2.3715]
[1718358078390,0.698,3517.8,3517.1,2.3715]
[1718358078596,0.698,3517.9,3517.1,2.3715]
[1718358079370,0.698,3517.9,3516.7,1.43344514]
[1718358079600,0.698,3517.9,3516.8,2.404]
[1718358079798,2.3779,3517.8,3516.4,2.39950497]
[1718358080111,0.698,3517.5,3516.4,1.43344514]
[1718358080259,0.698,3517.5,3516.5,0.698]
[1718358082519,0.698,3517.5,3516.6,2.0954]
[1718358083316,2.3779,3517.8,3516.6,2.0954]
[1718358083518,0.698,3517.6,3516.6,2.0954]
[1718358084179,0.297591,3517.7,3516.6,2.0954]
[1718358084380,0.698,3517.5,3516.6,2.0954]
[1718358086091,2.3105,3517.4,3516.6,2.0954]
[1718358086297,2.3105,3517.4,3516.4,3.52884514]
[1718358086499,2.3105,3517.4,3516.4,4.22684514]
[1718358088390,2.3105,3517.4,3516.4,2.0954]
[1718358088687,2.3105,3517.4,3516.4,2.7934]
[1718358089661,2.3105,3517.4,3516.4,2.0954]
[1718358089810,2.3105,3517.4,3516.4,2.7934]
[1718358090005,0.30085,3517.3,3516.4,0.698]
[1718358090207,2.2959,3517.2,3516.3,0.698]
[1718358091935,2.2959,3517.2,3516.2,0.44491536]
[1718358092143,2.2959,3517.2,3516.3,0.698]
[1718358092445,0.698,3517.1,3516.2,0.44491536]
[1718358092592,2.2663,3517.0,3516.2,0.44491536]
[1718358092799,0.29643,3516.9,3516.2,0.44491536]
[1718358096003,0.99443,3516.9,3516.2,0.44491536]
[1718358098333,2.455,3516.8,3516.2,0.44491536]
[1718358098952,0.698,3516.7,3516.2,0.44491536]
[1718358099164,0.698,3516.5,3516.2,0.44491536]
[1718358099475,2.455,3516.4,3515.5,0.24587649]
[1718358099636,2.3618,3515.6,3515.4,2.39950497]
[1718358099822,2.3618,3515.6,3514.8,2.86875734]
[1718358100172,2.3618,3516.3,3515.4,0.698]
[1718358100358,2.3618,3516.3,3515.3,2.0954]
[1718358100359,0.698,3516.1,3515.3,2.0954]
[1718358100559,0.698,3516.1,3515.1,0.698]
[1718358100734,3.0598,3516.3,3515.1,0.698]
[1718358101058,2.3618,3516.3,3515.2,0.75488825]
[1718358101243,2.3618,3516.3,3515.3,0.05688825]
[1718358101244,0.23618,3516.2,3515.3,0.05688825]
[1718358101720,0.23618,3516.2,3515.2,0.698]
[1718358101923,0.23618,3516.2,3515.0,2.0954]
[1718358102221,0.23618,3516.2,3515.2,0.698]
[1718358102426,0.23618,3516.2,3515.0,2.0954]
[1718358102758,3.0598,3516.3,3515.2,0.698]
[1718358102759,0.329598,3516.1,3515.2,0.698]
[1718358103235,1.027598,3516.1,3514.9,2.0954]
[1718358103433,1.027598,3516.1,3515.1,0.698]
[1718358104891,0.329598,3516.1,3515.1,0.698]
[1718358105253,0.329598,3516.1,3515.3,0.698]
[1718358105452,0.3389398,3516.0,3515.3,0.698]
[1718358105685,0.3389398,3516.0,3515.1,0.698]
[1718358105909,0.3389398,3516.0,3515.0,0.0568921]
[1718358106063,0.3389398,3516.0,3515.1,0.698]
[1718358107591,0.3389398,3516.0,3515.0,0.0568921]
[1718358107794,0.3389398,3516.0,3515.1,0.698]
[1718358109757,2.3666,3515.9,3515.1,0.698]
[1718358110167,2.70695398,3515.9,3515.0,0.0568921]
[1718358111588,2.70695398,3515.9,3514.9,0.754892]
[1718358112390,0.698,3515.8,3514.9,0.056892]
[1718358112591,0.698,3515.8,3514.9,0.698]
[1718358112900,2.70695398,3515.9,3514.9,0.698]
[1718358113107,2.70695398,3515.9,3515.0,0.05689199]
[1718358113260,0.3404954,3515.8,3515.0,0.05689199]
[1718358115086,2.2576,3515.7,3515.0,0.05689199]
[1718358116297,2.2576,3515.7,3514.9,0.698]
[1718358116616,2.2576,3515.7,3515.0,0.056892]
[1718358116970,2.2576,3515.7,3515.0,0.754892]
[1718358117414,2.2576,3515.7,3515.0,0.056892]
[1718358117725,2.2576,3515.7,3515.0,0.754892]
[1718358117870,2.2576,3515.7,3515.0,0.698]
[1718358118491,2.2576,3515.7,3515.0,0.75489201]
[1718358119560,2.2576,3515.7,3515.2,0.698]
[1718358119766,2.2576,3515.7,3515.2,0.75488975]
[1718358119914,2.2576,3515.7,3515.2,0.05688975]
[1718358120648,2.2576,3515.7,3515.1,0.05688975]
[1718358120819,2.2576,3515.7,3514.8,4.32384635]
[1718358121021,2.2576,3515.7,3515.0,0.698]
[1718358121346,2.2576,3515.7,3515.1,0.05688976]
[1718358122447,2.411,3516.6,3515.4,0.698]
[1718358122659,2.411,3516.3,3515.5,0.05688331]
[1718358122817,2.411,3515.8,3515.0,0.24591527]
[1718358123125,2.411,3515.8,3514.8,4.32384635]
[1718358123449,2.411,3515.8,3514.9,1.43344514]
[1718358125243,2.411,3515.8,3514.8,4.32384635]
[1718358125545,2.411,3515.8,3514.9,0.698]
[1718358125727,2.7219,3515.8,3514.9,0.698]
[1718358126123,2.7219,3515.8,3514.8,2.61584635]
[1718358126327,0.698,3515.5,3514.8,2.61584635]
[1718358126531,2.3916,3515.4,3514.8,2.61584635]
[1718358126863,2.3916,3515.4,3514.8,2.17075734]
[1718358127048,2.70056,3515.4,3514.8,2.17075734]
[1718358128232,2.3102,3515.2,3514.8,2.17075734]
[1718358128428,0.30896,3515.4,3514.8,2.17075734]
[1718358129131,2.3116,3515.8,3514.8,2.86875734]
[1718358129341,5.3116,3515.8,3514.8,2.86875734]
[1718358129541,2.3116,3515.7,3514.8,2.86875734]
[1718358130370,2.3116,3515.7,3514.8,2.17075734]
[1718358133069,3.0,3516.1,3514.8,2.17075734]
[1718358133070,2.3775,3515.5,3514.8,2.17075734]
[1718358133272,2.68505,3515.4,3514.8,2.17075734]
[1718358133430,3.38305,3515.4,3514.8,2.17075734]
[1718358133636,2.2583,3515.3,3514.8,2.17075734]
[1718358134769,2.3584,3515.1,3514.8,2.17075734]
[1718358134969,0.698,3515.0,3514.8,2.17075734]
[1718358135157,2.3584,3514.9,3514.8,2.17075734]
[1718358135785,3.0564,3514.9,3514.8,2.17075734]
[1718358137501,6.0564,3514.9,3514.8,2.17075734]
[1718358137707,6.96204,3514.9,3514.8,2.17075734]
[1718358137912,3.26404,3514.9,3514.8,2.17075734]
[1718358138622,2.3584,3514.9,3514.8,2.17075734]
[1718358139189,2.3423,3515.3,3514.8,2.17075734]
[1718358142810,0.698,3515.1,3514.8,2.17075734]
[1718358143127,2.4158,3515.0,3514.8,2.17075734]
[1718358145448,0.698,3514.9,3514.8,2.17075734]
[1718358145626,1.00938,3514.9,3514.8,2.17075734]
[1718358146048,0.31138,3514.9,3514.8,2.17075734]
[1718358146248,3.46458,3514.9,3514.8,2.17075734]
[1718358146449,2.76658,3514.9,3514.8,2.17075734]
[1718358146637,3.46458,3514.9,3514.8,2.17075734]
[1718358148558,6.46458,3514.9,3514.8,2.17075734]
[1718358148764,7.89802514,3514.9,3514.8,2.17075734]
[1718358148913,8.44802514,3514.9,3514.8,2.17075734]
[1718358150046,8.44802514,3514.9,3514.2,0.1227158]
[1718358150047,5.2767,3514.3,3514.2,0.1227158]
[1718358150248,3.0,3514.3,3514.2,0.1227158]
[1718358150445,3.698,3514.3,3514.2,0.1227158]
[1718358150682,0.84480251,3514.8,3514.2,0.1227158]
[1718358150898,4.00938,3514.9,3514.2,0.1227158]
[1718358151049,1.00938,3514.9,3514.2,0.1227158]
[1718358151382,3.0,3514.8,3514.2,0.1227158]
[1718358151581,4.00938,3514.9,3514.2,0.1227158]
[1718358151784,0.635358,3514.8,3514.2,0.1227158]
[1718358152080,1.333358,3514.8,3514.2,0.1227158]
[1718358152859,0.635358,3514.8,3514.2,0.1227158]
[1718358153260,3.31138,3514.9,3514.2,0.1227158]
[1718358154668,2.2529,3514.5,3514.2,0.1227158]
[1718358154969,1.98344514,3514.4,3514.2,0.1227158]
[1718358155595,2.4553,3514.3,3514.2,0.1227158]
[1718358158297,3.88874514,3514.3,3514.2,0.1227158]
[1718358158476,5.35061965,3514.3,3514.2,0.1227158]
[1718358158994,8.35061965,3514.3,3514.2,0.1227158]
[1718358159198,11.35061965,3514.3,3514.2,0.1227158]
[1718358159383,11.29571965,3514.3,3514.2,0.1227158]
[1718358161118,3.91187451,3514.3,3514.2,0.1227158]
[1718358161282,3.0,3514.4,3514.2,0.1227158]
[1718358161465,2.75798,3514.9,3514.2,0.1227158]
[1718358161665,0.31138,3514.9,3514.2,0.1227158]
[1718358161885,5.4466,3515.4,3514.2,0.1227158]
[1718358162092,1.43344514,3515.3,3514.2,0.1227158]
[1718358162292,2.2753,3514.9,3514.2,0.1227158]
[1718358162608,3.70874514,3514.9,3514.2,0.1227158]
[1718358163071,3.0,3514.8,3514.2,0.1227158]
[1718358163269,0.97087451,3514.7,3514.2,0.1227158]
[1718358167110,1.43344514,3514.6,3514.2,0.1227158]
[1718358167412,4.43344514,3514.6,3514.2,0.1227158]
[1718358167609,3.55,3514.5,3514.2,0.1227158]
[1718358170119,4.98344514,3514.5,3514.2,0.1227158]
[1718358170325,0.89543197,3514.4,3514.2,0.1227158]
[1718358171411,1.43344514,3514.3,3514.2,0.1227158]
[1718358171642,4.31174514,3514.3,3514.2,0.1227158]
[1718358171813,7.31174514,3514.3,3514.2,0.1227158]
[1718358178371,10.30574514,3514.3,3514.2,0.1227158]
[1718358178509,11.89386285,3514.3,3514.2,0.1227158]
[1718358181672,2.4593,3513.4,3512.4,4.65486618]
[1718358181832,0.24039018,3513.9,3512.5,2.4108]
[1718358182033,0.24039018,3513.9,3512.6,2.46773338]
[1718358182265,7.27,3514.3,3512.8,2.4108]
[1718358182465,7.27,3515.1,3513.2,1.708]
[1718358182639,1.43344514,3515.1,3513.4,2.4108]
[1718358182983,1.43344514,3515.1,3513.4,3.84424514]
[1718358183356,1.43344514,3515.1,3513.4,3.79424514]
[1718358184450,4.43344514,3515.1,3513.4,3.79424514]
[1718358184650,0.74334451,3515.0,3513.4,3.79424514]
[1718358185249,1.43344514,3514.9,3513.4,2.3608]
[1718358185479,2.2933,3514.7,3513.4,2.3608]
[1718358185700,3.66344514,3514.6,3513.4,2.3608]
[1718358186285,3.0,3514.5,3513.4,2.3608]
[1718358186490,2.87911965,3514.4,3513.4,2.3608]
[1718358186780,3.0,3514.3,3513.4,2.3608]
[1718358186989,4.43344514,3514.3,3513.4,2.3608]
[1718358187347,7.43344514,3514.3,3513.4,2.3608]
[1718358187549,1.43344514,3514.2,3513.4,2.3608]
[1718358187747,1.43791197,3514.1,3513.4,2.3608]
[1718358187981,5.87135711,3514.1,3513.4,2.3608]
[1718358188181,2.87135711,3514.1,3513.4,2.3608]
[1718358191381,0.88791197,3514.1,3513.4,2.3608]
[1718358191699,0.89567451,3514.4,3513.4,2.3608]
[1718358192000,2.32911965,3514.4,3513.4,2.3608]
[1718358192352,4.43344514,3514.3,3513.4,2.3608]
[1718358192553,3.0,3514.2,3513.4,2.3608]
[1718358193297,0.89567451,3514.4,3513.4,2.3608]
[1718358193596,0.38956745,3514.3,3513.4,2.3608]
[1718358193776,3.0,3514.3,3513.4,2.3608]
[1718358193951,3.0,3514.6,3513.5,0.05691873]
[1718358194300,1.68,3514.7,3513.4,2.3608]
[1718358194482,3.11344514,3514.7,3513.4,2.3608]
[1718358194684,3.0,3514.6,3513.4,2.3608]
[1718358194890,0.61134451,3514.5,3513.4,2.3608]
[1718358195902,0.61134451,3514.5,3513.5,0.05691892]
[1718358196063,0.61134451,3514.5,3513.6,2.3914]
[1718358196385,1.43344514,3514.7,3513.6,2.3914]
[1718358197877,3.0,3514.9,3513.6,2.3914]
[1718358199879,4.43344514,3514.9,3513.6,2.3914]
[1718358200084,3.0,3514.8,3513.6,2.3914]
[1718358200286,1.43344514,3514.7,3513.6,2.3914]
[1718358200480,1.54177451,3514.6,3513.6,2.3914]
[1718358200684,5.97521965,3514.6,3513.6,2.3914]
[1718358200885,2.97521965,3514.6,3513.6,2.3914]
[1718358201086,3.0,3514.5,3513.6,2.3914]
[1718358205196,4.43344514,3514.5,3513.6,2.3914]
[1718358205398,1.31552196,3514.4,3513.6,2.3914]
[1718358205924,2.7489671,3514.4,3513.6,2.3914]
[1718358206095,3.0,3514.3,3513.6,2.3914]
[1718358206297,1.43344514,3514.2,3512.7,2.2577]
[1718358206617,1.66393671,3514.1,3512.7,2.2577]
[1718358206785,6.09738185,3514.1,3512.7,2.2577]
[1718358206981,3.09738185,3514.1,3512.7,2.2577]
[1718358207197,1.43344514,3514.0,3512.7,2.2577]
[1718358208234,3.55,3513.9,3512.7,2.2577]
[1718358208391,2.39818333,3513.8,3512.7,2.2577]
[1718358208725,0.55,3513.7,3512.7,2.2577]
[1718358209022,1.98344514,3513.7,3512.7,2.2577]
[1718358211148,3.0,3513.8,3512.7,1.43344514]
[1718358211297,0.76552196,3514.4,3512.8,2.54403492]
[1718358211504,5.1989671,3514.4,3512.8,2.54403492]
[1718358211842,5.1989671,3514.4,3512.8,2.4871]
[1718358212303,5.1989671,3514.4,3512.7,1.43344514]
[1718358212304,5.1989671,3514.4,3513.0,2.3254]
[1718358212505,1.24689671,3514.3,3513.1,0.05692406]
[1718358213136,1.24689671,3514.3,3513.2,2.3254]
[1718358214125,1.43344514,3514.2,3513.2,2.3254]
[1718358214441,3.0,3514.0,3513.2,2.3254]
[1718358214632,0.44334451,3513.9,3513.2,2.3254]
[1718358217129,1.43344514,3513.8,3513.2,2.3254]
[1718358217407,0.55,3513.7,3512.5,2.4295]
[1718358222353,1.43344514,3513.8,3512.7,2.3138]
[1718358223342,3.44334451,3513.9,3512.7,2.3138]
[1718358223522,0.64433445,3513.8,3512.7,2.3138]
[1718358224386,4.24689671,3514.3,3512.8,0.05692899]
[1718358224584,1.24689671,3514.3,3513.0,2.4244]
[1718358224881,1.24689671,3514.3,3513.1,2.48132141]
[1718358227982,3.0,3514.4,3513.3,2.2818]
[1718358228386,3.0,3514.4,3513.4,0.05691975]
[1718358228695,3.0,3514.7,3513.5,2.2925]
[1718358228696,3.0,3514.6,3513.5,2.2925]
[1718358230671,1.43344514,3514.5,3513.5,2.2925]
[1718358230869,3.0,3514.6,3513.5,2.2925]
[1718358231094,0.6,3514.5,3513.5,2.2925]
[1718358236118,0.6,3514.5,3513.6,0.05691779]
[1718358236284,3.0,3514.6,3513.7,2.3298]
[1718358239489,3.0,3515.0,3513.7,2.3298]
[1718358239691,1.98344514,3514.9,3513.7,2.3298]
[1718358240801,1.98344514,3514.9,3513.1,1.708]
[1718358240802,3.0,3515.0,3513.8,0.05691467]
[1718358241005,0.22969504,3515.2,3513.9,2.4744]
[1718358241006,3.22969504,3515.2,3513.9,2.4744]
[1718358241207,0.4909695,3515.1,3513.9,2.4744]
[1718358243594,3.4909695,3515.1,3513.9,2.4744]
[1718358245031,3.4909695,3515.1,3514.0,2.35860932]
[1718358245326,0.22969504,3515.2,3514.0,2.35860932]
[1718358249932,3.0,3515.6,3514.3,2.2866]
[1718358250131,3.0,3515.6,3514.4,2.3434971]
[1718358250305,3.0,3515.6,3514.5,2.2866]
[1718358250506,3.0,3515.6,3514.7,2.4341]
[1718358250729,3.0,3515.6,3514.9,2.4341]
[1718358251212,3.0,3516.0,3514.9,2.4341]
[1718358251616,3.0,3516.0,3515.0,0.05689224]
[1718358251921,0.02800008,3515.9,3515.0,0.05689224]
[1718358252125,0.02800008,3516.1,3515.0,0.30599146]
[1718358252322,0.02800008,3516.1,3515.2,2.4341]
[1718358252522,2.4271,3516.7,3515.2,2.4341]
[1718358252523,0.02800008,3516.6,3515.2,2.4341]
[1718358252722,3.0,3516.4,3515.2,2.4341]
[1718358252924,1.46144522,3516.3,3515.2,2.4341]
[1718358253104,0.02800008,3516.2,3515.2,2.4341]
[1718358253301,0.44614452,3516.1,3515.2,2.4341]
[1718358253514,0.02800008,3516.0,3515.2,2.4341]
[1718358255435,0.02800008,3515.9,3515.2,2.4341]
[1718358258143,2.82294452,3516.1,3515.2,2.4341]
[1718358258343,0.75029445,3516.0,3515.2,2.4341]
[1718358259061,2.18373959,3516.0,3515.2,2.4341]
[1718358260631,5.18373959,3516.0,3515.2,2.4341]
[1718358260835,5.18373959,3516.0,3514.4,2.2715]
[1718358264317,5.18373959,3516.0,3514.5,2.39939711]
[1718358264653,0.96866841,3515.9,3514.7,2.4823]
[1718358264857,3.0,3515.9,3514.9,2.4823]
[1718358265016,3.0,3515.9,3514.6,1.43344514]
[1718358265017,3.0,3515.9,3515.2,2.4823]
[1718358265356,0.44614452,3516.1,3515.3,0.05689192]
[1718358265565,3.7,3516.3,3515.4,2.4823]
[1718358266058,0.7,3516.1,3515.4,2.4823]
[1718358266854,3.0,3516.3,3515.4,2.4823]
[1718358271038,3.0,3516.3,3514.7,2.2738]
[1718358271247,5.3444,3516.8,3515.2,1.708]
[1718358271424,3.0,3516.5,3515.4,2.2738]
[1718358271626,3.0,3516.4,3515.4,2.2738]
[1718358277837,2.3375,3516.2,3514.7,2.2927]
[1718358278087,1.39499451,3516.1,3514.7,2.2927]
[1718358278471,4.39499451,3516.1,3514.7,2.2927]
[1718358281496,4.39499451,3516.1,3514.8,0.05689443]
[1718358282400,2.2723,3516.0,3514.7,2.2927]
[1718358282695,0.81007397,3515.9,3514.7,2.2927]
[1718358283159,3.81007397,3515.9,3514.7,2.2927]
[1718358283357,5.24351911,3515.9,3514.7,2.2927]
[1718358285111,2.3014,3515.7,3514.7,2.2927]
[1718358286763,2.3014,3515.7,3514.1,4.0702]
[1718358286991,0.80949191,3515.6,3514.2,1.43344514]
[1718358288878,0.7,3515.4,3514.4,0.7]
[1718358290077,0.7,3515.5,3514.6,0.7]
[1718358290474,0.7,3515.5,3514.6,0.7568993]
[1718358290803,2.3014,3515.7,3514.6,0.7568993]
[1718358291117,0.7,3515.6,3514.6,0.7568993]
[1718358291409,0.7,3515.6,3514.6,0.7]
[1718358297714,0.7,3515.6,3514.6,0.7568993]
[1718358298940,0.7,3515.6,3514.7,2.4446]
[1718358301501,3.0,3515.9,3514.8,0.05689769]
[1718358301844,0.7,3515.8,3514.9,2.4409]
[1718358302002,0.7,3515.8,3515.0,0.0568931]
[1718358302696,3.0,3515.9,3515.0,0.0568931]
[1718358302898,3.0,3515.9,3514.9,2.4409]
[1718358303102,3.0,3515.8,3515.2,2.3538]
[1718358303694,3.0,3516.2,3515.1,2.2847]
[1718358303899,3.10104,3516.7,3515.4,0.7]
[1718358304100,0.7,3516.4,3515.4,2.9847]
[1718358304302,0.7,3516.4,3515.4,3.28885854]
[1718358305063,0.7,3516.4,3515.5,0.05688542]
[1718358305535,0.7,3516.4,3515.4,3.28885854]
[1718358305536,0.7,3516.0,3515.4,2.2847]
[1718358310249,6.0,3516.6,3515.4,2.2847]
[1718358310421,0.7,3516.2,3515.4,2.2847]
[1718358312946,6.0,3516.6,3515.4,3.28317]
[1718358313149,0.7,3516.4,3515.4,3.28317]
[1718358313456,0.7,3516.2,3515.4,2.58317]
[1718358314036,6.0,3516.6,3515.4,2.58317]
[1718358314357,0.7,3516.3,3515.4,2.58317]
[1718358314531,0.7,3516.3,3515.5,0.29363734]
[1718358314916,0.7,3516.5,3515.6,0.05688565]
[1718358315243,0.7,3516.5,3515.7,2.4359]
[1718358315419,0.7,3516.5,3515.8,0.05687968]
[1718358317919,0.70234,3516.7,3515.8,0.05687968]
[1718358318112,0.7,3516.5,3515.8,0.05687968]
[1718358319861,0.7,3516.1,3515.5,0.29363734]
[1718358320431,0.7,3516.3,3515.5,0.29363734]
[1718358320627,2.3458,3516.8,3515.6,0.05688579]
[1718358320823,0.7,3516.3,3515.7,2.4725]
[1718358321027,0.7,3516.3,3515.7,2.72543858]
[1718358321828,3.0,3516.7,3515.7,2.72543858]
[1718358322163,0.7,3516.4,3515.7,2.4725]
[1718358326380,3.0,3516.7,3515.7,2.4725]
[1718358326538,0.7,3516.4,3515.7,2.4725]
[1718358327253,0.7,3516.2,3515.7,2.4725]
[1718358332566,1.43344514,3516.8,3515.2,2.2945]
[1718358332567,0.7,3515.8,3515.2,2.2945]
[1718358333461,0.7,3515.8,3514.8,3.09950497]
[1718358333462,0.7,3515.4,3514.9,2.4254]
[1718358333693,0.7,3515.2,3514.3,2.4254]
[1718358333864,0.7,3515.2,3514.3,3.85884514]
[1718358334991,2.3905,3515.8,3514.3,3.85884514]
[1718358334992,2.3905,3515.8,3514.5,2.474]